fUST/lending_fUST_20250227
["ID","MTS","AMOUNT","RATE_DAILY","PERIOD"]
[354643098,1740601859047,-546.0,0.00345636,120]
[354643100,1740601859057,-546.0,0.00345636,120]
[354643101,1740601859067,-546.0,0.00345636,120]
[354643102,1740601859077,-546.0,0.00345636,120]
[354643103,1740601859086,-546.0,0.00345636,120]
[354643104,1740601859098,-546.0,0.00345636,120]
[354643106,1740601859108,-546.0,0.00345636,120]
[354643107,1740601859117,-546.0,0.00345636,120]
[354643108,1740601859127,-546.0,0.00345636,120]
[354643109,1740601859137,-546.0,0.00345636,120]
[354643111,1740601859147,-546.0,0.00345636,120]
[354643112,1740601859156,-546.0,0.00345636,120]
[354643113,1740601859166,-546.0,0.00345636,120]
[354643114,1740601859176,-546.0,0.00345636,120]
[354643115,1740601859186,-247.55486082,0.00346904,120]
[354643117,1740601859195,-160.0,0.00347534,12]
[354643118,1740601859205,-247.55486082,0.00348521,120]
[354643119,1740601859215,-200.0,0.0035,120]
[354643120,1740601859225,-200.0,0.0035049,120]
[354643121,1740601859234,-160.0,0.00356416,13]
[354643123,1740601859244,-7500.0,0.00357004,14]
[354643124,1740601859254,-5000.0,0.0036,120]
[354643125,1740601859264,-179.46161515,0.00364072,60]
[354643126,1740601859274,-151.29,0.00365,120]
[354643127,1740601859283,-160.0,0.00365298,14]
[354643129,1740601859293,-276.20925805,0.00365298,5]
[354643130,1740601859302,-271.67,0.0037,120]
[354643131,1740601859312,-200.0,0.0037077,120]
[354643132,1740601859321,-160.60505,0.00385411,2]
[354643133,1740601859330,-8000.0,0.003883,14]
[354643135,1740601859340,-150.0,0.0039,120]
[354643136,1740601859349,-200.0,0.0039105,120]
[354643137,1740601859359,-200.0,0.004,120]
[354643138,1740601859370,-20000.0,0.004,120]
[354643139,1740601859379,-5576.12673126,0.004,120]
[354643141,1740601859390,-258.0,0.0041132,120]
[354643142,1740601859399,-264.9,0.00418,60]
[354643143,1740601859408,-8500.0,0.00420658,14]
[354643144,1740601859418,-160.0,0.00423595,120]
[354643145,1740601859427,-160.0,0.00424225,120]
[354643146,1740601859438,-5000.0,0.0043,120]
[354643148,1740601859448,-340.26,0.00437,60]
[354643149,1740601859457,-1232.33207925,0.0043767,28]
[354643150,1740601859467,-5000.0,0.0044,120]
[354643151,1740601859477,-5000.0,0.0044,120]
[354643152,1740601859487,-5000.0,0.0045,120]
[354643153,1740601859496,-200.0,0.0045,120]
[354643154,1740601859505,-2091.50131813,0.00454043,14]
[354643155,1740601859514,-150.5,0.00454206,120]
[354643156,1740601859524,-150.5,0.00454206,120]
[354643157,1740601859534,-862.16603393,0.00454206,120]
[354643158,1740601859543,-150.5,0.00454206,2]
[354643159,1740601859553,-150.5,0.0045448,120]
[354643160,1740601859562,-150.5,0.0045448,120]
[354643161,1740601859571,-200.1343008,0.00454754,120]
[354643162,1740601859580,-199.0,0.00454754,120]
[354643163,1740601859592,-160.0,0.00463769,120]
[354643164,1740601859601,-160.0,0.00478719,120]
[354643165,1740601859610,-3000.0,0.004889,120]
[354643166,1740601859620,-5000.0,0.0049,120]
[354643167,1740601859630,-9026.26433184,0.0049,120]
[354643168,1740601859643,-151.29,0.00494,120]
[354643169,1740601859652,-5000.0,0.004969,120]
[354643171,1740601859662,-398.0,0.00498989,120]
[354643172,1740601859672,-15696.06730031,0.005,2]
[354643173,1740601859682,-200.0,0.005,120]
[354643174,1740601859691,-160.60505,0.005,2]
[354643175,1740601859701,-40000.0,0.005,120]
[354643177,1740601859710,-30000.0,0.005,120]
[354643178,1740601859720,-160.406554,0.005,2]
[354643179,1740601859730,-1023.1266183,0.005,120]
[354643180,1740601859739,-1533.39217932,0.005,120]
[354643181,1740601859749,-20000.0,0.005,90]
[354643182,1740601859760,-60108.6955645,0.005,120]
[354643184,1740601859770,-560.25,0.005076,87]
[354643185,1740601859779,-560.25,0.005076,87]
[354643186,1740601859789,-560.25,0.005076,87]
[354643187,1740601859798,-560.25,0.005076,87]
[354643188,1740601859808,-560.25,0.005076,87]
[354643190,1740601859818,-560.25,0.005076,87]
[354643191,1740601859827,-560.25,0.005076,87]
[354643192,1740601859836,-560.25,0.005076,87]
[354643193,1740601859846,-560.25,0.005076,87]
[354643194,1740601859856,-560.25,0.005076,87]
[354643196,1740601859865,-560.25,0.005076,87]
[354643197,1740601859876,-560.25,0.005076,87]
[354643198,1740601859887,-560.25,0.005076,87]
[354643199,1740601859896,-560.25,0.005076,87]
[354643201,1740601859906,-560.25,0.005076,87]
[354643202,1740601859915,-560.25,0.005076,87]
[354643203,1740601859925,-560.25,0.005076,87]
[354643204,1740601859935,-560.25,0.005076,87]
[354643205,1740601859945,-560.25,0.005076,87]
[354643207,1740601859955,-560.25,0.005076,87]
[354643208,1740601859964,-560.25,0.005076,87]
[354643209,1740601859974,-560.25,0.005076,87]
[354643210,1740601859983,-560.25,0.005076,87]
[354643211,1740601859993,-560.25,0.005076,87]
[354643213,1740601860002,-160.0,0.00524723,120]
[354643214,1740601860017,-160.0,0.00524723,120]
[354643215,1740601860026,-160.0,0.00524723,120]
[354643216,1740601860036,-160.0,0.00524723,120]
[354643217,1740601860046,-160.0,0.00524723,120]
[354643219,1740601860057,-160.0,0.00524723,120]
[354643220,1740601860070,-160.0,0.00524723,120]
[354643221,1740601860080,-160.0,0.00524723,120]
[354643222,1740601860092,-160.0,0.00524723,120]
[354643223,1740601860102,-160.0,0.00524723,120]
[354643225,1740601860113,-160.0,0.00524723,120]
[354643226,1740601860123,-160.0,0.00524723,120]
[354643227,1740601860134,-160.0,0.00524723,120]
[354643228,1740601860143,-160.0,0.00524723,120]
[354643229,1740601860152,-247.0,0.0052482,120]
[354643231,1740601860162,-247.0,0.0052482,120]
[354643232,1740601860171,-247.0,0.0052482,120]
[354643233,1740601860181,-247.0,0.0052482,120]
[354643234,1740601860190,-247.0,0.0052482,120]
[354643235,1740601860199,-247.0,0.0052482,120]
[354643236,1740601860209,-247.0,0.0052482,120]
[354643238,1740601860219,-247.0,0.0052482,120]
[354643239,1740601860229,-247.0,0.0052482,120]
[354643240,1740601860238,-247.0,0.0052482,120]
[354643241,1740601860248,-247.0,0.0052482,120]
[354643242,1740601860257,-247.0,0.0052482,120]
[354643244,1740601860267,-247.0,0.0052482,120]
[354643245,1740601860276,-247.0,0.0052482,120]
[354643246,1740601860286,-160.0,0.00525229,120]
[354643247,1740601860296,-160.0,0.00525229,120]
[354643248,1740601860306,-160.0,0.00525229,120]
[354643249,1740601860315,-247.0,0.00525343,120]
[354643251,1740601860335,-247.0,0.00525343,120]
[354643252,1740601860346,-247.0,0.00525343,120]
[354643253,1740601860356,-1232.33207925,0.00534747,28]
[354643254,1740601860366,-160.0,0.00538388,120]
[354643256,1740601860376,-5000.0,0.0054,120]
[354643257,1740601860388,-621.30119547,0.00543176,120]
[354643258,1740601860399,-264.9,0.00544,60]
[354643259,1740601860409,-179.46161515,0.00546107,60]
[354643260,1740601860419,-160.60505,0.00546192,60]
[354643262,1740601860429,-1574.14980492,0.00547945,120]
[354643263,1740601860440,-5000.0,0.0055,120]
[354643264,1740601860450,-200.0,0.0055,120]
[354643265,1740601860460,-1235.74840486,0.0056,120]
[354643266,1740601860470,-5248.43970258,0.0056,120]
[354643268,1740601860481,-160.0,0.00569289,120]
[354643269,1740601860491,-235.9,0.005704,120]
[354643270,1740601860502,-1000.0,0.00577,120]
[354643271,1740601860513,-160.0,0.00579058,120]
[354643272,1740601860523,-340.26,0.0058,60]
[354643274,1740601860534,-1000.0,0.0059,120]
[354643275,1740601860544,-5000.0,0.0059,120]
[354643276,1740601860555,-5000.0,0.0059,120]
[354643277,1740601860565,-5000.0,0.005988,120]
[354643278,1740601860576,-10047.49144177,0.006,120]
[354643280,1740601860587,-200.0,0.006,120]
[354643281,1740601860598,-50000.0,0.006,120]
[354643282,1740601860608,-150.0,0.006,120]
[354643283,1740601860619,-23115.18819297,0.006,120]
[354643284,1740601860629,-151.29,0.006,120]
[354643286,1740601860642,-2472.0,0.0062,120]
[354643287,1740601860652,-150.0,0.00621696,14]
[354643288,1740601860663,-150.0,0.00621696,14]
[354643289,1740601860674,-500.0,0.00621696,120]
[354643290,1740601860685,-500.0,0.00621696,120]
[354643292,1740601860696,-500.0,0.00621696,120]
[354643293,1740601860707,-40123.46227942,0.00629999,120]
[354643294,1740601860718,-1232.33207925,0.00631823,28]
[354643295,1740601860728,-160.0,0.00632586,120]
[354643296,1740601860738,-7060.72400732,0.00644344,30]
[354643298,1740601860748,-77174.67352873,0.00645,120]
[354643299,1740601860758,-480.0,0.00649093,120]
[354643300,1740601860769,-480.0,0.00649093,120]
[354643301,1740601860779,-480.0,0.00649093,120]
[354643302,1740601860789,-119773.66306962,0.00649898,120]
[354643304,1740601860800,-200.0,0.0065,120]
[354643305,1740601860810,-301119.79,0.006788,120]
[354643306,1740601860819,-500000.0,0.0068,30]
[354643307,1740601860829,-271.67,0.0068,120]
[354643308,1740601860839,-440.0,0.00680423,120]
[354643310,1740601860849,-500.0,0.00680423,120]
[354643311,1740601860859,-500.0,0.00684904,120]
[354643312,1740601860870,-500.0,0.00684904,120]
[354643313,1740601860881,-500.0,0.00684904,120]
[354643314,1740601860894,-500.0,0.00684904,120]
[354643315,1740601860904,-500.0,0.00684904,120]
[354643317,1740601860914,-500.0,0.00684904,120]
[354643318,1740601860924,-500.0,0.00684904,120]
[354643319,1740601860935,-500.0,0.00684904,120]
[354643320,1740601860944,-500.0,0.00684904,120]
[354643321,1740601860954,-500.0,0.00684904,120]
[354643323,1740601860964,-500.0,0.00684904,120]
[354643324,1740601860974,-500.0,0.00684904,120]
[354643325,1740601860984,-500.0,0.00684904,120]
[354643326,1740601860995,-500.0,0.00684904,120]
[354643327,1740601861005,-500.0,0.00684904,120]
[354643329,1740601861016,-500.0,0.00684904,120]
[354643330,1740601861030,-500.0,0.00684904,120]
[354643331,1740601861039,-500.0,0.00684904,120]
[354643332,1740601861049,-500.0,0.00684904,120]
[354643333,1740601861061,-500.0,0.00684904,120]
[354643335,1740601861072,-152.40590414,0.00684904,120]
[354643336,1740601861082,-1719.33,0.00684931,120]
[354643337,1740601861093,-1719.33,0.00684931,120]
[354643338,1740601861104,-1719.33,0.00684931,120]
[354643339,1740601861114,-1719.33,0.00684931,120]
[354643341,1740601861124,-1719.33,0.00684931,120]
[354643342,1740601861137,-1719.33,0.00684931,120]
[354643343,1740601861147,-1719.33,0.00684931,120]
[354643344,1740601861158,-1719.33,0.00684931,120]
[354643345,1740601861168,-1719.33,0.00684931,120]
[354643347,1740601861179,-1719.33,0.00684931,120]
[354643348,1740601861191,-1719.33,0.00684931,120]
[354643349,1740601861202,-1719.33,0.00684931,120]
[354643350,1740601861213,-1719.33,0.00684931,120]
[354643351,1740601861225,-1719.33,0.00684931,120]
[354643353,1740601861236,-1719.33,0.00684931,120]
[354643354,1740601861247,-1719.33,0.00684931,120]
[354643355,1740601861258,-1719.33,0.00684931,120]
[354643359,1740601861271,-1719.33,0.00684931,120]
[354643360,1740601861401,-1719.33,0.00684931,120]
[354643361,1740601861411,-1719.33,0.00684931,120]
[354643362,1740601861420,-1719.33,0.00684931,120]
[354643363,1740601861430,-1719.33,0.00684931,120]
[354643364,1740601861440,-1719.33,0.00684931,120]
[354643366,1740601861450,-1719.490421,0.00684931,120]
[354643367,1740601861460,-138697.77442746,0.00688,120]
[354643369,1740601861528,-51.03732972,0.00688,120]
[354643370,1740601861544,-150.0,0.00072157,120]
[354643372,1740601861554,-1941.49053753,0.00688,120]
[354643373,1740601861565,-1457.695,0.00688,120]
[354643374,1740601861577,-47139.11490353,0.00688,120]
[354643375,1740601861587,-3000.0,0.006889,120]
[354643376,1740601861596,-2051.87782505,0.0069,120]
[354643377,1740601861606,-5000.0,0.006969,120]
[354643378,1740601861616,-5000.0,0.006988,120]
[354643380,1740601861626,-5000.0,0.007,120]
[354643381,1740601861637,-5000.0,0.007,120]
[354643382,1740601861647,-200.0,0.007,120]
[354643383,1740601861656,-14521.83317801,0.007,120]
[354643384,1740601861666,-160.60505,0.0071,60]
[354643385,1740601861677,-160.406554,0.0071,60]
[354643387,1740601861687,-166.79843,0.0071,60]
[354643388,1740601861697,-37609.66436133,0.0071,120]
[354643389,1740601861707,-242.20827847,0.00713432,120]
[354643390,1740601861716,-155.94634658,0.00714628,120]
[354643394,1740601861859,-500.0,0.00052054,120]
[354643395,1740601861869,-500.0,0.00052328,120]
[354643396,1740601861879,-500.0,0.00052602,120]
[354643397,1740601861890,-500.0,0.00052876,120]
[354643399,1740601861899,-500.0,0.0005315,120]
[354643400,1740601861909,-500.0,0.00056163,120]
[354643401,1740601861918,-617.14,0.00056437,120]
[354643402,1740601861928,-150.0,0.00075157,120]
[354643403,1740601861938,-150.0,0.00078157,120]
[354643405,1740601861947,-150.0,0.00081157,120]
[354643406,1740601861957,-150.0,0.00084157,120]
[354643407,1740601861967,-334.0641223,0.00714628,120]
[354643408,1740601861976,-9933.1785787,0.00717428,120]
[354643409,1740601861989,-933.59579041,0.00717428,120]
[354643411,1740601862001,-189824.18015038,0.00717428,120]
[354643412,1740601862014,-1232.33207925,0.007289,28]
[354643413,1740601862024,-20000.0,0.00729,120]
[354643414,1740601862033,-10000.0,0.00729,120]
[354643415,1740601862043,-560.25,0.007314,87]
[354643417,1740601862055,-560.25,0.007314,87]
[354643418,1740601862066,-560.25,0.007314,87]
[354643419,1740601862076,-560.25,0.007314,87]
[354643420,1740601862085,-560.25,0.007314,87]
[354643421,1740601862095,-560.25,0.007314,87]
[354643422,1740601862104,-560.25,0.007314,87]
[354643424,1740601862114,-560.25,0.007314,87]
[354643425,1740601862123,-560.25,0.007314,87]
[354643426,1740601862133,-560.25,0.007314,87]
[354643427,1740601862144,-560.25,0.007314,87]
[354643428,1740601862154,-560.25,0.007314,87]
[354643430,1740601862163,-560.25,0.007314,87]
[354643431,1740601862173,-560.25,0.007314,87]
[354643432,1740601862182,-560.25,0.007314,87]
[354643433,1740601862192,-560.25,0.007314,87]
[354643434,1740601862201,-560.25,0.007314,87]
[354643435,1740601862211,-560.25,0.007314,87]
[354643437,1740601862220,-560.25,0.007314,87]
[354643438,1740601862230,-560.25,0.007314,87]
[354643439,1740601862239,-560.25,0.007314,87]
[354643440,1740601862249,-560.25,0.007314,87]
[354643441,1740601862258,-560.25,0.007314,87]
[354643442,1740601862268,-560.25,0.007314,87]
[354643444,1740601862281,-340.26,0.00732,60]
[354643445,1740601862291,-20673.82923378,0.00737,120]
[354643446,1740601862305,-350.0,0.00737,120]
[354643448,1740601862342,-1356.5099045,0.00737,120]
[354643449,1740601862354,-2162.53910812,0.00737,120]
[354643450,1740601862366,-1917.45300304,0.00737,120]
[354643451,1740601862383,-500.0,0.00058499,120]
[354643453,1740601862396,-12497.0945763,0.00737,120]
[354643454,1740601862406,-7500.0,0.007378,120]
[354643455,1740601862415,-41088.01354583,0.00738759,120]
[354643456,1740601862425,-10000.0,0.00739,120]
[354643457,1740601862435,-150.0,0.0074,120]
[354643459,1740601862444,-30069.290535,0.00747,120]
[354643460,1740601862454,-1010.0,0.0074747,120]
[354643461,1740601862463,-10000.0,0.007488,120]
[354643462,1740601862473,-10000.0,0.007499,120]
[354643463,1740601862486,-151.0,0.00749999,120]
[354643465,1740601862496,-2500.0,0.0075,120]
[354643466,1740601862506,-12000.0,0.0075,120]
[354643467,1740601862515,-9500.0,0.0075,120]
[354643468,1740601862524,-600.0,0.0075,120]
[354644081,1740601895827,233.0,0.0004,120]
[354644390,1740601912404,-500.0,0.00052054,120]
[354644391,1740601912464,-500.0,0.00052054,120]
[354644393,1740601912521,-500.0,0.00052054,120]
[354644396,1740601912576,-500.0,0.00052054,120]
[354644398,1740601912629,-500.0,0.00052054,120]
[354644399,1740601912683,-500.0,0.00052054,120]
[354644402,1740601912736,-500.0,0.00052054,120]
[354644403,1740601912788,-500.0,0.00052054,120]
[354644406,1740601912843,-500.0,0.00052054,120]
[354644408,1740601912894,-500.0,0.00052054,120]
[354644410,1740601912947,-500.0,0.00052054,120]
[354644411,1740601912999,-500.0,0.00052054,120]
[354644413,1740601913052,-500.0,0.00052054,120]
[354644415,1740601913106,-500.0,0.00052054,120]
[354644417,1740601913160,-500.0,0.00052054,120]
[354644419,1740601913216,-500.0,0.00052054,120]
[354644421,1740601913269,-500.0,0.00052054,120]
[354644424,1740601913327,-500.0,0.00052054,120]
[354644425,1740601913384,-500.0,0.00052327,30]
[354644428,1740601913445,-500.0,0.00052327,120]
[354644430,1740601913499,-500.86906289,0.00052327,120]
[354644432,1740601913556,-500.0,0.00052327,15]
[354644433,1740601913613,-500.0,0.00052327,120]
[354644435,1740601913666,-500.0,0.00052327,120]
[354644437,1740601913724,-202.75510864,0.00052327,120]
[354644439,1740601913777,-500.0,0.00052327,120]
[354644442,1740601913830,-500.0,0.00052327,120]
[354644444,1740601913884,-500.0,0.00052328,120]
[354644446,1740601913941,-500.0,0.00052328,120]
[354644448,1740601913994,-500.0,0.00052328,120]
[354644450,1740601914049,-500.0,0.00052328,120]
[354644452,1740601914104,-500.0,0.00052328,120]
[354644454,1740601914167,-500.0,0.00052328,120]
[354644455,1740601914233,-500.0,0.00052328,120]
[354644457,1740601914290,-500.0,0.00052328,120]
[354644458,1740601914341,-500.0,0.00052328,120]
[354644459,1740601914392,-500.0,0.00052328,120]
[354644460,1740601914441,-500.0,0.00052328,120]
[354644461,1740601914493,-500.0,0.00052328,120]
[354644462,1740601914542,-500.0,0.00052328,120]
[354644463,1740601914590,-500.0,0.00052328,120]
[354644464,1740601914638,-500.0,0.00052328,120]
[354644465,1740601914689,-500.0,0.00052328,120]
[354644466,1740601914742,-500.0,0.00052328,120]
[354644467,1740601914965,-500.0,0.00052328,120]
[354644468,1740601915017,-500.0,0.00052601,120]
[354644469,1740601915071,-500.0,0.00052601,15]
[354644470,1740601915123,-500.0,0.00052601,120]
[354644471,1740601915173,-500.0,0.00052602,120]
[354644472,1740601915225,-500.0,0.00052602,120]
[354644473,1740601915273,-500.0,0.00052602,120]
[354644474,1740601915320,-500.0,0.00052602,120]
[354644475,1740601915367,-500.0,0.00052602,120]
[354644476,1740601915414,-500.0,0.00052602,120]
[354644477,1740601915462,-500.0,0.00052602,120]
[354644478,1740601915510,-500.0,0.00052602,120]
[354644479,1740601915558,-505.46111321,0.00052602,120]
[354644480,1740601915608,-500.0,0.00052602,120]
[354644481,1740601915656,-500.0,0.00052602,120]
[354644482,1740601915704,-500.0,0.00052602,120]
[354644483,1740601915752,-351.10676789,0.00052602,120]
[354644484,1740601915800,-500.0,0.00052602,120]
[354644485,1740601915848,-500.0,0.00052602,120]
[354644486,1740601915895,-500.0,0.00052602,120]
[354644487,1740601915940,-500.0,0.00052602,120]
[354644488,1740601915989,-500.0,0.00052602,120]
[354644489,1740601916040,-500.0,0.00052875,120]
[354644490,1740601916091,-500.0,0.00052875,15]
[354644491,1740601916139,-500.0,0.00052875,120]
[354644492,1740601916189,-500.0,0.00052876,120]
[354644493,1740601916241,-500.0,0.00052876,120]
[354644494,1740601916291,-500.0,0.00052876,120]
[354644495,1740601916339,-500.0,0.00052876,120]
[354644496,1740601916390,-500.0,0.00052876,120]
[354644498,1740601916447,-500.0,0.00052876,120]
[354644499,1740601916503,-500.0,0.00052876,120]
[354644500,1740601916554,-621.72578956,0.00052876,120]
[354644501,1740601916606,-500.0,0.00052876,120]
[354644502,1740601916658,-500.0,0.00052876,120]
[354644503,1740601916706,-500.0,0.00052876,120]
[354644504,1740601916756,-500.0,0.00052876,120]
[354644505,1740601916804,-500.0,0.00052876,120]
[354644506,1740601916851,-500.0,0.00052876,120]
[354644507,1740601916896,-500.0,0.00052876,120]
[354644508,1740601916944,-743.15467142,0.000529,12]
[354644509,1740601916990,-500.0,0.00053149,120]
[354644510,1740601917035,-500.0,0.00053149,15]
[354644511,1740601917089,-500.0,0.00053149,120]
[354644512,1740601917141,-500.0,0.0005315,120]
[354644513,1740601917190,-500.0,0.0005315,120]
[354644514,1740601917240,-500.0,0.0005315,120]
[354644515,1740601917289,-500.0,0.0005315,120]
[354644516,1740601917339,-500.0,0.0005315,120]
[354644517,1740601917389,-500.0,0.0005315,120]
[354644518,1740601917440,-500.0,0.0005315,120]
[354644519,1740601917493,-500.0,0.0005315,120]
[354644520,1740601917547,-500.0,0.0005315,120]
[354644521,1740601917601,-402.88657212,0.0005315,120]
[354644522,1740601917655,-500.0,0.0005315,120]
[354644523,1740601917706,-500.0,0.0005315,120]
[354644524,1740601917759,-500.0,0.0005315,120]
[354644525,1740601917811,-500.0,0.0005315,120]
[354644526,1740601917862,-500.0,0.00053423,120]
[354644527,1740601917911,-500.0,0.00053423,15]
[354644528,1740601917960,-502.64896479,0.00053423,120]
[354644529,1740601918015,-500.0,0.00053424,120]
[354644530,1740601918071,-500.0,0.00053424,120]
[354644531,1740601918127,-500.0,0.00053424,120]
[354644532,1740601918185,-500.0,0.00053424,120]
[354644533,1740601918239,-500.0,0.00053424,120]
[354644534,1740601918290,-500.0,0.00053424,120]
[354644535,1740601918341,-500.0,0.00053424,120]
[354644536,1740601918392,-500.0,0.00053424,120]
[354644537,1740601918443,-500.0,0.00053424,120]
[354644538,1740601918494,-500.0,0.00053424,120]
[354644539,1740601918543,-500.0,0.00053424,120]
[354644540,1740601918593,-500.0,0.00053424,120]
[354644541,1740601918644,-526.88,0.00053424,120]
[354644542,1740601918695,-500.0,0.00053424,120]
[354644543,1740601918742,-500.0,0.00053697,120]
[354644544,1740601918791,-500.0,0.00053697,120]
[354644545,1740601918840,-500.0,0.00053697,120]
[354644546,1740601918891,-649.9719995,0.00053697,120]
[354644547,1740601918940,-260.5996184,0.00053697,120]
[354644548,1740601918990,-500.0,0.00053697,120]
[354644549,1740601919040,-500.0,0.00053697,120]
[354644550,1740601919089,-500.0,0.00053697,120]
[354644551,1740601919147,-500.0,0.00053697,15]
[354644552,1740601919201,-500.0,0.00053697,120]
[354644553,1740601919254,-500.0,0.00053697,120]
[354644554,1740601919306,-507.07,0.00053697,120]
[354644555,1740601919359,-500.0,0.00053697,120]
[354644556,1740601919411,-500.0,0.00053697,120]
[354644557,1740601919460,-375.32222947,0.00053697,120]
[354644558,1740601919513,-500.0,0.00053697,120]
[354644559,1740601919571,-500.0,0.00053698,120]
[354644560,1740601919626,-500.0,0.00053698,120]
[354644561,1740601919675,-500.0,0.00053698,120]
[354644562,1740601919727,-500.0,0.00053698,120]
[354644563,1740601919776,-500.0,0.00053698,120]
[354644565,1740601920000,-500.0,0.00053698,120]
[354644566,1740601920056,-637.83,0.00053698,120]
[354644567,1740601920114,-500.0,0.00053698,120]
[354644568,1740601920172,-500.0,0.00053698,120]
[354644569,1740601920229,-162.9,0.00053698,120]
[354644570,1740601920286,-500.0,0.00053698,120]
[354644571,1740601920341,-500.0,0.00053698,120]
[354644572,1740601920397,-500.0,0.00053971,120]
[354644573,1740601920453,-500.0,0.00053971,120]
[354644574,1740601920510,-500.0,0.00053971,120]
[354644575,1740601920563,-500.0,0.00053971,120]
[354644580,1740601920615,-500.0,0.00053971,15]
[354644586,1740601920667,-500.0,0.00053971,120]
[354644591,1740601920719,-500.0,0.00053971,120]
[354644597,1740601920767,-500.0,0.00053971,120]
[354644599,1740601920814,-500.0,0.00053971,120]
[354644600,1740601920863,-500.0,0.00053972,120]
[354644604,1740601920912,-500.0,0.00053972,120]
[354644606,1740601920966,-500.0,0.00053972,120]
[354644607,1740601921016,-500.0,0.00053972,120]
[354644608,1740601921069,-500.0,0.00053972,120]
[354644609,1740601921122,-500.0,0.00053972,120]
[354644610,1740601921173,-500.0,0.00053972,120]
[354644614,1740601921225,-500.0,0.00053972,120]
[354644619,1740601921277,-500.0,0.00053972,120]
[354644622,1740601921328,-314.46080446,0.00054232,10]
[354644628,1740601921380,-500.0,0.00054245,120]
[354644631,1740601921431,-500.0,0.00054245,120]
[354644637,1740601921485,-500.0,0.00054245,120]
[354644640,1740601921535,-500.0,0.00054245,120]
[354644643,1740601921584,-500.0,0.00054245,15]
[354644648,1740601921632,-500.0,0.00054245,120]
[354644653,1740601921682,-500.0,0.00054245,120]
[354644654,1740601921731,-500.0,0.00054245,120]
[354644659,1740601921781,-530.85708414,0.00054245,120]
[354644665,1740601921833,-500.0,0.00054246,120]
[354644668,1740601921886,-500.0,0.00054246,120]
[354644669,1740601921937,-500.0,0.00054246,120]
[354644670,1740601921989,-500.0,0.00054246,120]
[354644671,1740601922039,-500.0,0.00054246,120]
[354644672,1740601922096,-500.0,0.00054246,120]
[354644673,1740601922148,-574.07522724,0.00054246,120]
[354644674,1740601922199,-500.0,0.00054246,120]
[354644675,1740601922250,-500.0,0.00054246,120]
[354644676,1740601922303,-500.0,0.00054519,120]
[354644678,1740601922362,-500.0,0.00054519,120]
[354644679,1740601922423,-500.0,0.00054519,120]
[354644684,1740601922485,-500.0,0.00054519,120]
[354644690,1740601922540,-500.0,0.00054519,15]
[354644691,1740601922596,-500.0,0.00054519,120]
[354644692,1740601922649,-500.0,0.00054519,120]